bitfinex/quotes_SOLUSD_20260202
["timestamp","ask_amount","ask_price","bid_price","bid_amount"]
[1770059869701,0.49745085,104.64,104.6,13.37831527]
[1770059870400,4.0159325,104.64,104.59,3.51848165]
[1770059870698,0.46562306,104.65,104.61,9.55929072]
[1770059870894,0.46562306,104.65,104.62,0.3]
[1770059871099,0.46562306,104.65,104.61,13.37777237]
[1770059871683,0.46562306,104.65,104.61,3.81848165]
[1770059872096,0.46562306,104.65,104.61,3.51848165]
[1770059872097,0.46562306,104.64,104.61,3.51848165]
[1770059872707,0.46562306,104.64,104.6,13.37826429]
[1770059873207,0.46562306,104.63,104.59,13.07915014]
[1770059873388,3.98410471,104.63,104.59,9.56066849]
[1770059873589,0.46562306,104.62,104.59,9.86066849]
[1770059874704,0.46562306,104.61,104.58,13.08011759]
[1770059874907,0.46562306,104.61,104.58,9.56163594]
[1770059875091,0.46562306,104.61,104.58,9.86163594]
[1770059875587,0.46562306,104.62,104.59,9.86109303]
[1770059876406,0.46562306,104.62,104.59,13.37957468]
[1770059877009,13.07557678,104.64,104.6,0.3]
[1770059877010,0.46562306,104.64,104.6,0.3]
[1770059877204,0.46562306,104.63,104.59,3.81848165]
[1770059877522,0.46562306,104.62,104.59,0.3]
[1770059878006,3.98410471,104.62,104.58,9.86175734]
[1770059879409,0.46562306,104.61,104.58,9.86175734]
[1770059879611,3.98410471,104.62,104.58,13.38023899]
[1770059879817,3.98410471,104.62,104.59,0.3]
[1770059880511,0.46562306,104.61,104.57,9.56258742]
[1770059880700,0.46562306,104.59,104.55,13.3828024]
[1770059880900,0.46562306,104.58,104.55,13.3828024]
[1770059881102,0.46562306,104.58,104.55,3.81848165]
[1770059881290,0.46562306,104.57,104.53,13.48457526]
[1770059881490,0.46562306,104.57,104.54,0.3]
[1770059881915,3.98410471,104.57,104.53,13.48457526]
[1770059882109,3.98410471,104.57,104.53,0.1]
[1770059882110,0.46562306,104.56,104.53,0.1]
[1770059882291,3.98410471,104.56,104.53,0.1]
[1770059882490,0.46562306,104.54,104.53,0.1]
[1770059882796,0.46562306,104.54,104.52,0.1]
[1770059883010,0.46562306,104.53,104.51,0.1]
[1770059883312,3.98410471,104.53,104.51,0.1]
[1770059883491,0.46562306,104.53,104.51,0.1]
[1770059883694,3.98410471,104.53,104.49,13.58343578]
[1770059884619,3.98410471,104.53,104.49,10.06495413]
[1770059884813,3.98410471,104.53,104.49,13.58343578]
[1770059885005,0.46562306,104.53,104.49,13.58343578]
[1770059885819,0.46562306,104.52,104.49,0.49508353]
[1770059886002,3.98410471,104.52,104.48,10.0658146]
[1770059886712,9.56620842,104.54,104.47,3.51848165]
[1770059886713,0.46562306,104.5,104.47,9.57172464]
[1770059886918,0.46562306,104.49,104.46,0.1]
[1770059887111,3.98410471,104.49,104.46,0.1]
[1770059887621,0.46562306,104.52,104.47,10.06707622]
[1770059887819,0.46562306,104.52,104.49,3.51848165]
[1770059888010,0.46562306,104.52,104.49,13.58380164]
[1770059888207,0.46562306,104.52,104.49,3.51848165]
[1770059889512,0.46562306,104.52,104.49,13.08869689]
[1770059889700,0.46562306,104.54,104.5,4.01356518]
[1770059890016,0.46562306,104.54,104.51,3.51848165]
[1770059890416,0.46562306,104.53,104.49,4.01356518]
[1770059890623,0.46562306,104.53,104.49,13.58369925]
[1770059890924,0.46562306,104.53,104.5,3.51848165]
[1770059891104,0.46562306,104.53,104.5,13.08772565]
[1770059892100,0.46562306,104.52,104.48,13.584339]
[1770059892313,0.46562306,104.52,104.48,4.01356518]
[1770059892513,0.46562306,104.52,104.48,4.01921618]
[1770059893717,0.46562306,104.51,104.47,13.59112503]
[1770059894029,0.46562306,104.51,104.48,4.01921618]
[1770059894525,0.46562306,104.51,104.48,0.49508353]
[1770059894728,0.46562306,104.51,104.47,13.59112503]
[1770059894900,0.46562306,104.51,104.48,3.52413265]
[1770059895418,0.46562306,104.51,104.48,13.09531026]
[1770059895610,0.46562306,104.51,104.48,3.52413265]
[1770059896626,0.46562306,104.53,104.5,0.49508353]
[1770059896805,0.46562306,104.53,104.5,4.01921618]
[1770059897005,0.46562306,104.53,104.51,3.52413265]
[1770059898521,0.46562306,104.53,104.5,4.01921618]
[1770059900033,0.46562306,104.53,104.5,13.58854789]
[1770059900243,0.48555447,104.55,104.51,3.99724652]
[1770059901329,0.48555447,104.55,104.52,3.52413265]
[1770059901526,0.48555447,104.55,104.51,13.56543753]
[1770059901836,0.48555447,104.55,104.52,3.52413265]
[1770059902023,0.48555447,104.55,104.52,3.99724652]
[1770059902618,0.48555447,104.58,104.54,3.99724652]
[1770059902822,0.48555447,104.59,104.56,3.99724652]
[1770059903024,0.48555447,104.61,104.58,3.52413265]
[1770059903313,0.48555447,104.61,104.57,13.55946183]
[1770059904512,0.48555447,104.61,104.58,3.52413265]
[1770059905119,0.48555447,104.6,104.56,3.52413265]
[1770059905341,0.48555447,104.59,104.55,13.5616253]
[1770059905833,0.48555447,104.58,104.55,0.47311387]
[1770059906415,0.48555447,104.58,104.55,13.5616724]
[1770059907113,0.48555447,104.59,104.55,13.5616724]
[1770059907534,0.48555447,104.58,104.54,13.56250475]
[1770059908529,0.48555447,104.58,104.55,9.5646425]
[1770059908723,0.48555447,104.58,104.55,13.08877515]
[1770059910033,0.48555447,104.59,104.56,3.99724652]
[1770059910533,0.48555447,104.59,104.55,13.56188902]
[1770059913936,0.48555447,104.61,104.58,0.47311387]
[1770059914420,0.48555447,104.61,104.57,3.99724652]
[1770059915017,0.48555447,104.61,104.57,13.56020521]
[1770059915234,0.48555447,104.61,104.57,3.99724652]
[1770059915443,0.48555447,104.59,104.55,13.56165346]
[1770059915619,0.48555447,104.58,104.55,0.47311387]
[1770059915814,0.48555447,104.58,104.54,13.56243236]
[1770059916930,0.48555447,104.59,104.56,3.99724652]
[1770059917138,0.48555447,104.6,104.57,3.99724652]
[1770059917352,0.48555447,104.61,104.57,3.99724652]
[1770059917531,4.00968712,104.61,104.57,0.47311387]
[1770059917833,0.48555447,104.6,104.57,0.47311387]
[1770059918238,0.48555447,104.6,104.56,3.99724652]
[1770059918539,0.48555447,104.59,104.56,0.47311387]
[1770059918737,0.48555447,104.59,104.55,13.56157498]
[1770059919036,0.48555447,104.58,104.55,10.03744233]
[1770059919242,0.48555447,104.58,104.54,13.5625027]
[1770059919742,0.48555447,104.58,104.55,10.03772332]
[1770059920430,9.28447676,104.6,104.56,0.47311387]
[1770059920637,0.48555447,104.61,104.58,0.47311387]
[1770059921025,0.48555447,104.61,104.57,8.79892229]
[1770059921342,0.48555447,104.61,104.57,9.27203616]
[1770059922144,0.48555447,104.6,104.56,18.83503228]
[1770059926041,0.48555447,104.61,104.58,0.47311387]
[1770059926844,0.48555447,104.61,104.57,9.27203616]
[1770059928545,0.48555447,104.61,104.57,18.83489691]
[1770059929049,0.48555447,104.61,104.56,23.9097169]
[1770059929050,0.4991971,104.6,104.56,18.84878761]
[1770059929231,0.4991971,104.59,104.56,10.04986532]
[1770059929750,0.4991971,104.58,104.54,18.85056495]
[1770059929936,0.4991971,104.58,104.55,9.5647037]
[1770059930248,0.4991971,104.58,104.54,42.76447823]
[1770059930828,0.4991971,104.58,104.55,10.05625119]
[1770059931039,0.4991971,104.58,104.55,18.85517348]
[1770059936155,0.47949529,104.56,104.53,18.36516392]
[1770059936351,0.47949529,104.56,104.52,18.8573942]
[1770059937441,0.47949529,104.54,104.51,10.05911728]
[1770059937852,0.47949529,104.54,104.51,18.85803957]
[1770059939836,0.47949529,104.54,104.51,10.05911728]
[1770059940149,0.47949529,104.54,104.51,9.56766762]
[1770059940350,0.47949529,104.54,104.51,10.05911728]
[1770059940735,0.47949529,104.55,104.52,0.49144966]
[1770059941936,9.27841758,104.55,104.51,9.56766762]
[1770059942157,0.47949529,104.54,104.51,9.56766762]
[1770059942536,0.47949529,104.54,104.51,10.05911728]
[1770059947961,0.47949529,104.55,104.52,0.49144966]
[1770059948548,0.47949529,104.57,104.54,0.49144966]
[1770059955662,8.80119819,104.56,104.53,0.49144966]
[1770059955858,0.47949529,104.55,104.53,0.49144966]
[1770059956443,0.47949529,104.56,104.53,0.49144966]
[1770059957045,0.47949529,104.56,104.52,18.85944878]
[1770059957246,0.47949529,104.54,104.51,10.05936251]
[1770059957542,8.80119819,104.56,104.51,18.36911104]
[1770059957746,0.47949529,104.55,104.52,9.29264785]
[1770059958474,18.36454578,104.57,104.53,0.49144966]
[1770059958475,0.47949529,104.56,104.53,0.49144966]
[1770059958775,0.47949529,104.56,104.53,9.29264785]
[1770059959852,0.47949529,104.56,104.53,18.85916841]
[1770059960156,0.48129027,104.58,104.54,9.26144578]
[1770059960656,0.48129027,104.58,104.55,0.46024759]
[1770059964075,0.48129027,104.58,104.54,18.82675419]
[1770059964382,0.48129027,104.55,104.52,9.56710974]
[1770059964756,0.48129027,104.55,104.52,10.02735733]
[1770059968761,0.48129027,104.55,104.52,13.5493424]
[1770059970356,3.52198507,104.56,104.54,3.52198507]
[1770059970357,0.48129027,104.56,104.54,3.52198507]
[1770059970556,0.48129027,104.59,104.56,0.46024759]
[1770059970761,0.48129027,104.59,104.55,3.98223266]
[1770059971960,0.48129027,104.59,104.55,10.02501694]
[1770059972177,0.48129027,104.58,104.54,13.54738281]
[1770059973777,0.48129027,104.57,104.53,13.54849311]
[1770059974271,0.48129027,104.58,104.55,0.46024759]
[1770059974471,0.48129027,104.58,104.55,3.98223266]
[1770059975464,0.48129027,104.59,104.56,0.46024759]
[1770059975866,0.48129027,104.59,104.55,13.54664899]
[1770059978178,0.48129027,104.59,104.55,0.46024759]
[1770059978380,0.48129027,104.58,104.55,0.46024759]
[1770059978583,0.48129027,104.57,104.52,0.46024759]
[1770059978881,0.48129027,104.56,104.52,13.54918731]
[1770059979276,0.48129027,104.56,104.53,3.98223266]
[1770059979783,0.48129027,104.56,104.53,0.46024759]
[1770059981361,0.48129027,104.56,104.53,13.54885354]
[1770059982186,0.48129027,104.56,104.53,3.98223266]
[1770059983486,0.48129027,104.56,104.52,0.46024759]
[1770059983690,0.48129027,104.54,104.51,13.55027653]
[1770059983987,0.48129027,104.51,104.48,10.03108678]
[1770059984392,4.00327534,104.51,104.48,0.46024759]
[1770059984597,4.00327534,104.5,104.46,0.56024759]
[1770059984774,0.48129027,104.48,104.46,0.1]
[1770059985573,0.48129027,104.47,104.46,0.1]
[1770059985796,0.48129027,104.47,104.45,0.1]
[1770059985982,4.00327534,104.48,104.45,0.1]
[1770059986377,9.29859458,104.48,104.45,0.1]
[1770059986588,0.48129027,104.48,104.45,0.1]
[1770059987092,0.48129027,104.48,104.45,0.56024759]
[1770059987279,0.48129027,104.48,104.45,10.13412706]
[1770059987992,0.48129027,104.48,104.45,18.95143137]
[1770059989905,0.45783187,104.49,104.45,18.95143137]
[1770059990198,9.27513618,104.49,104.45,18.95143137]
[1770059990398,0.45783187,104.49,104.45,18.95143137]
[1770059990607,0.45783187,104.49,104.46,0.49699269]
[1770059992110,9.27513618,104.49,104.46,0.49699269]
[1770059993988,0.45783187,104.49,104.46,0.49699269]
[1770059994888,9.27513618,104.49,104.46,0.49699269]
[1770060001797,0.45783187,104.47,104.45,0.1]
[1770060002502,0.45783187,104.48,104.45,0.59699269]
[1770060003108,8.81730431,104.49,104.4,9.57811507]
[1770060003109,0.45783187,104.45,104.4,9.57811507]
[1770060003292,9.27513618,104.43,104.4,0.49699269]
[1770060003485,26.6,104.48,104.39,9.67887226]
[1770060003486,0.45783187,104.41,104.39,0.1]
[1770060003690,4.27527085,104.45,104.39,0.1]
[1770060003990,0.45783187,104.45,104.42,0.49699269]
[1770060004220,9.27513618,104.45,104.42,0.49699269]
[1770060004390,9.27513618,104.44,104.4,0.49699269]
[1770060004592,9.27513618,104.44,104.4,10.07544264]
[1770060004807,0.45783187,104.44,104.41,10.07458303]
[1770060004990,0.45783187,104.45,104.42,0.49699269]
[1770060005313,0.45783187,104.44,104.41,0.49699269]
[1770060005610,0.45783187,104.45,104.42,0.49699269]
[1770060005989,0.45783187,104.46,104.43,0.49699269]
[1770060006202,0.45783187,104.46,104.41,0.49699269]
[1770060006400,18.38957166,104.47,104.39,26.7]
[1770060006401,3.98777297,104.44,104.4,0.49699269]
[1770060006705,0.45783187,104.45,104.41,4.02693379]
[1770060006908,0.45783187,104.44,104.41,0.49699269]
[1770060007111,0.45783187,104.44,104.41,4.02693379]
[1770060007492,0.45783187,104.45,104.42,4.02693379]
[1770060008514,0.45783187,104.45,104.42,0.49699269]
[1770060010215,0.45783187,104.45,104.42,4.02693379]
[1770060012218,0.45783187,104.46,104.43,0.49699269]
[1770060012432,0.45783187,104.48,104.45,0.49699269]
[1770060012721,0.45783187,104.48,104.44,4.02410029]
[1770060013095,0.45783187,104.47,104.44,4.02410029]
[1770060014404,0.45783187,104.47,104.44,3.5271076]
[1770060015010,0.45783187,104.47,104.43,13.59932361]
[1770060017219,0.45783187,104.47,104.44,3.5271076]
[1770060017999,0.45783187,104.47,104.45,3.5271076]
[1770060018313,0.45783187,104.47,104.45,4.02410029]
[1770060018520,0.45783187,104.49,104.46,4.02410029]
[1770060019204,0.45783187,104.49,104.46,3.5271076]
[1770060019825,0.45783187,104.49,104.45,4.02410029]
[1770060020021,0.45035772,104.46,104.43,3.5271076]
[1770060020231,0.45035772,104.45,104.41,13.59777988]
[1770060020730,0.45035772,104.45,104.42,13.59708503]
[1770060021103,0.45035772,104.45,104.42,4.02040005]
[1770060022024,0.45035772,104.45,104.43,3.5271076]
[1770060022410,0.45035772,104.45,104.42,4.02040005]
[1770060023129,0.45035772,104.45,104.41,4.02040005]
[1770060023325,0.45035772,104.43,104.39,13.69934927]
[1770060025522,3.97746532,104.43,104.39,10.17224167]
[1770060025717,3.97746532,104.42,104.39,0.59329245]
[1770060026106,0.45035772,104.42,104.39,0.59329245]
[1770060029525,3.97746532,104.42,104.39,0.1]
[1770060029729,0.45035772,104.41,104.39,0.1]
[1770060030734,0.45035772,104.39,104.35,9.68270607]
[1770060031040,0.45035772,104.35,104.32,51.13047247]
[1770060031220,0.45035772,104.35,104.31,10.07959219]
[1770060031221,3.97746532,104.35,104.31,10.07959219]
[1770060031523,0.45035772,104.35,104.31,13.60669677]
[1770060031834,0.45035772,104.35,104.31,0.49329245]
[1770060032029,3.97746532,104.35,104.31,9.58675588]
[1770060032234,0.45035772,104.35,104.32,0.49329245]
[1770060032528,3.5271076,104.35,104.3,4.12040005]
[1770060032734,0.45035772,104.32,104.3,0.1]
[1770060033028,0.45035772,104.31,104.3,0.1]
[1770060033218,0.45035772,104.31,104.28,10.08275162]
[1770060033416,3.5271076,104.34,104.3,0.49329245]
[1770060034332,3.5271076,104.34,104.3,4.02040005]
[1770060034629,9.58336807,104.35,104.3,4.02040005]
[1770060034630,13.11047567,104.35,104.3,4.02040005]
[1770060034826,26.62,104.38,104.32,0.49329245]
[1770060035014,13.1084049,104.37,104.32,4.02040005]
[1770060035221,0.45035772,104.36,104.32,3.5271076]
[1770060035832,0.45035772,104.35,104.31,3.5271076]
[1770060036021,0.45035772,104.35,104.31,13.11387642]
[1770060036520,0.45035772,104.33,104.25,167.6]
[1770060036716,0.45035772,104.33,104.29,8.83853302]
[1770060037234,0.45035772,104.34,104.31,0.49329245]
[1770060037451,0.45035772,104.34,104.3,9.33182547]
[1770060039241,0.45035772,104.33,104.3,0.49329245]
[1770060039534,0.45035772,104.33,104.29,9.33182547]
[1770060040038,0.45035772,104.33,104.3,9.5877277]
[1770060041059,0.45035772,104.32,104.27,10.08323892]
[1770060041337,0.45035772,104.31,104.28,10.08274681]
[1770060041638,0.45035772,104.31,104.28,0.49329245]
[1770060043440,0.45035772,104.31,104.28,10.08282888]
[1770060044151,0.45035772,104.31,104.28,0.49329245]
[1770060044326,0.45035772,104.31,104.27,18.71287428]
[1770060045017,0.45035772,104.31,104.27,8.83853302]
[1770060045722,0.45035772,104.34,104.27,9.59026001]
[1770060045923,0.45035772,104.3,104.26,18.42947774]
[1770060046136,0.45035772,104.3,104.27,8.83853302]
[1770060046423,0.45035772,104.3,104.27,18.64228563]
[1770060046619,0.45035772,104.3,104.25,0.35557667]
[1770060046819,8.83853302,104.31,104.26,18.42952167]
[1770060046820,0.45035772,104.29,104.26,18.42952167]
[1770060047030,0.45035772,104.29,104.26,18.64293677]
[1770060047214,0.45035772,104.3,104.27,8.83853302]
[1770060054640,0.45049995,104.31,104.28,9.05194812]
[1770060054848,0.45049995,104.31,104.29,8.83853302]
[1770060055047,0.45049995,104.33,104.3,9.05194812]
[1770060055249,0.45049995,104.33,104.3,8.83853302]
[1770060055549,0.45049995,104.33,104.29,9.05194812]
[1770060055752,0.45049995,104.33,104.29,18.64032438]
[1770060056048,0.45049995,104.33,104.3,8.83853302]
[1770060056647,0.45049995,104.33,104.3,3.53655205]
[1770060057449,0.45049995,104.33,104.29,13.33860091]
[1770060058146,0.45049995,104.32,104.28,3.53655205]
[1770060058450,0.45049995,104.32,104.27,0.49773824]
[1770060058451,0.45049995,104.31,104.27,3.74996715]
[1770060058746,0.45049995,104.31,104.27,13.34041173]
[1770060059131,0.45049995,104.31,104.28,3.53655205]
[1770060060665,0.45049995,104.33,104.3,3.53655205]
[1770060060948,0.45049995,104.33,104.28,9.58947872]
[1770060060949,0.45049995,104.33,104.29,3.74996715]
[1770060061149,0.45049995,104.33,104.3,3.53655205]
[1770060062242,0.45049995,104.33,104.31,3.53655205]
[1770060062540,0.45049995,104.33,104.3,0.2134151]
[1770060062541,0.45049995,104.33,104.3,3.53655205]
[1770060062934,0.45049995,104.34,104.3,3.74996715]
[1770060063254,0.45049995,104.32,104.29,0.2134151]
[1770060063433,0.45049995,104.32,104.28,3.74996715]
[1770060064041,0.45049995,104.32,104.28,13.33949332]
[1770060064565,0.45049995,104.33,104.29,3.74996715]
[1770060064864,3.53655205,104.33,104.29,0.2134151]
[1770060065154,0.45049995,104.32,104.29,3.74996715]
[1770060065364,0.45049995,104.33,104.3,3.74996715]
[1770060065742,0.45049995,104.33,104.3,3.53655205]
[1770060066452,0.45049995,104.33,104.29,0.2134151]
[1770060066453,0.45049995,104.33,104.29,3.74996715]
[1770060067238,0.45049995,104.33,104.29,13.33852874]
[1770060067436,0.45049995,104.33,104.29,3.74996715]
[1770060067641,10.0356688,104.33,104.29,0.2134151]
[1770060067834,0.45049995,104.33,104.29,3.74996715]
[1770060068236,0.45049995,104.33,104.29,13.33855911]
[1770060068942,0.45049995,104.33,104.29,3.74996715]
[1770060069352,0.45049995,104.33,104.29,13.33855999]
[1770060069863,0.45049995,104.33,104.3,3.74996715]
[1770060072156,0.45049995,104.34,104.3,3.74996715]
[1770060072474,0.45049995,104.36,104.32,3.74996715]
[1770060072635,0.45049995,104.36,104.34,3.53655205]
[1770060072836,13.1163032,104.39,104.35,3.74996715]
[1770060072837,0.45049995,104.39,104.35,3.74996715]
[1770060073045,0.45049995,104.39,104.3,42.45367271]
[1770060073046,0.45049995,104.39,104.36,3.74996715]
[1770060073748,0.45049995,104.4,104.37,3.53655205]
[1770060073937,0.45049995,104.4,104.38,3.53655205]
[1770060074137,0.45049995,104.41,104.39,3.53655205]
[1770060074442,0.45049995,104.41,104.37,9.58107972]
[1770060074443,0.45049995,104.41,104.35,9.7960638]
[1770060074754,0.45049995,104.4,104.36,9.03949275]
[1770060074958,0.45049995,104.4,104.37,9.03949275]
[1770060075459,0.45049995,104.4,104.36,9.03949275]
[1770060076040,0.45049995,104.39,104.35,9.03949275]
[1770060078158,0.45049995,104.39,104.36,0.2134151]
[1770060081259,0.45049995,104.39,104.34,9.86791604]
[1770060081260,0.45107916,104.41,104.37,9.03949275]
[1770060082352,0.45107916,104.41,104.37,8.82607765]
[1770060083271,0.45107916,104.4,104.37,8.82607765]
[1770060083477,0.45107916,104.4,104.36,8.82607765]
[1770060083981,0.45107916,104.4,104.37,8.82607765]
[1770060084145,0.45107916,104.41,104.37,9.03949275]
[1770060084769,0.45107916,104.4,104.37,0.2134151]
[1770060086365,0.45107916,104.42,104.39,0.2134151]
[1770060086567,0.65107916,104.43,104.41,8.82607765]
[1770060086747,0.2,104.43,104.41,8.82607765]
[1770060086945,0.2,104.45,104.41,9.03949275]
[1770060087174,0.2,104.45,104.42,9.32451661]
[1770060087548,0.2,104.45,104.42,0.49843896]
[1770060087743,0.2,104.45,104.41,9.32451661]
[1770060088571,0.2,104.45,104.41,18.90211725]
[1770060088751,0.2,104.45,104.42,8.82607765]
[1770060089068,0.65107916,104.45,104.42,9.32451661]
[1770060089668,0.65107916,104.45,104.41,9.32451661]
[1770060089852,0.45107916,104.44,104.4,18.9026139]
[1770060090167,9.77407613,104.45,104.42,8.82607765]
[1770060090168,0.65107916,104.45,104.42,8.82607765]
[1770060092675,0.45107916,104.44,104.41,9.32451661]
[1770060093169,0.45107916,104.44,104.4,9.57848131]
[1770060093170,0.2,104.45,104.44,0.49843896]
[1770060093355,8.82607765,104.49,104.46,8.82607765]
[1770060093356,0.45107916,104.49,104.46,8.82607765]
[1770060093759,0.45107916,104.49,104.45,9.29057191]
[1770060093959,4.47527085,104.52,104.46,0.46449426]
[1770060093960,0.45107916,104.51,104.46,0.46449426]
[1770060094161,0.45107916,104.51,104.47,8.82607765]
[1770060094564,0.45107916,104.51,104.47,9.29057191]
[1770060095882,0.45107916,104.51,104.47,18.86266655]
[1770060096070,0.45107916,104.51,104.46,8.82607765]
[1770060096071,0.45107916,104.5,104.46,8.82607765]
[1770060096264,0.45107916,104.49,104.45,8.82607765]
[1770060096462,0.45107916,104.49,104.45,3.52629537]
[1770060096660,0.45107916,104.49,104.45,3.99078963]
[1770060097062,0.45107916,104.5,104.46,3.99078963]
[1770060097269,0.45107916,104.51,104.47,3.99078963]
[1770060097482,0.45107916,104.51,104.47,3.52629537]
[1770060097984,0.45107916,104.5,104.46,3.99078963]
[1770060098464,0.45107916,104.5,104.47,3.52629537]
[1770060100094,0.45107916,104.5,104.46,3.99078963]
[1770060100867,0.45107916,104.49,104.45,13.56430863]
[1770060101069,0.45107916,104.49,104.45,3.99078963]
[1770060101770,0.45107916,104.49,104.46,0.46449426]
[1770060102166,3.52629537,104.48,104.42,0.46449426]
[1770060102366,3.52629537,104.48,104.45,3.52629537]
[1770060102367,0.45107916,104.48,104.45,3.52629537]
[1770060102686,0.45107916,104.49,104.46,3.52629537]
[1770060103077,0.45107916,104.49,104.45,3.99078963]
[1770060103273,0.45107916,104.48,104.44,0.46449426]
[1770060103479,0.45107916,104.47,104.43,3.99078963]
[1770060103690,0.45107916,104.47,104.43,13.56631803]
[1770060103893,0.45107916,104.47,104.44,3.99078963]
[1770060105594,0.45107916,104.47,104.44,0.46449426]
[1770060105794,0.45107916,104.47,104.43,3.99078963]
[1770060105996,0.45107916,104.47,104.43,13.56651698]
[1770060107101,0.45107916,104.46,104.43,3.52629537]
[1770060107275,0.45107916,104.46,104.43,3.99078963]
[1770060107906,0.45107916,104.46,104.43,0.46449426]
[1770060108083,0.45107916,104.45,104.42,3.52629537]
[1770060108403,0.45107916,104.46,104.43,13.10207028]
[1770060108781,0.45107916,104.46,104.43,3.52629537]
[1770060109883,0.4955526,104.48,104.44,3.99078963]
[1770060110394,0.4955526,104.5,104.47,3.99078963]
[1770060110596,0.4955526,104.51,104.48,3.52629537]
[1770060110800,0.4955526,104.51,104.47,0.46449426]
[1770060111101,0.4955526,104.51,104.48,3.52629537]
[1770060111596,0.4955526,104.51,104.46,0.46449426]
[1770060111597,0.4955526,104.5,104.46,0.46449426]
[1770060111800,0.4955526,104.49,104.46,0.46449426]
[1770060111981,0.4955526,104.49,104.46,13.56373981]
[1770060112789,0.4955526,104.51,104.47,3.52629537]
[1770060112975,0.4955526,104.51,104.47,3.99078963]
[1770060113182,0.4955526,104.51,104.48,3.52629537]
[1770060115205,0.4955526,104.51,104.47,13.56245459]
[1770060115409,0.4955526,104.51,104.48,3.52629537]
[1770060118215,0.4955526,104.51,104.47,13.56245459]
[1770060118427,0.4955526,104.5,104.47,3.52629537]
[1770060119221,0.4955526,104.5,104.47,3.99078963]
[1770060119386,0.4955526,104.5,104.47,13.56277995]
[1770060119813,0.4955526,104.5,104.47,3.99078963]
[1770060120317,0.4955526,104.48,104.44,9.57484296]
[1770060120488,0.4955526,104.48,104.44,13.56563259]
[1770060120690,0.4955526,104.49,104.46,3.52629537]
[1770060120894,0.6955526,104.52,104.48,0.46449426]
[1770060121095,0.4955526,104.51,104.48,3.99078963]
[1770060121305,0.4955526,104.51,104.48,3.52629537]
[1770060121511,0.4955526,104.51,104.47,9.57208596]
[1770060121512,0.4955526,104.51,104.47,3.99078963]
[1770060121790,0.4955526,104.51,104.47,3.52629537]
[1770060122902,0.4955526,104.51,104.47,3.99078963]
[1770060123212,0.4955526,104.51,104.47,13.5628395]
[1770060123415,0.4955526,104.51,104.48,3.99078963]
[1770060126011,0.4955526,104.51,104.48,3.52629537]
[1770060126212,0.4955526,104.51,104.47,0.46449426]
[1770060126412,0.4955526,104.5,104.47,3.52629537]
[1770060126618,0.4955526,104.5,104.48,3.52629537]
[1770060126997,0.4955526,104.5,104.47,3.99078963]
[1770060127316,0.4955526,104.5,104.46,33.50532121]
[1770060127317,0.4955526,104.5,104.46,13.56350506]
[1770060127510,0.4955526,104.5,104.46,13.56380308]
[1770060128014,0.4955526,104.5,104.47,3.52629537]
[1770060129115,0.4955526,104.5,104.46,13.56380308]
[1770060129626,0.4955526,104.5,104.47,13.56281036]
[1770060129828,0.6955526,104.52,104.49,3.99078963]
[1770060130115,0.6955526,104.52,104.5,3.52629537]
[1770060130426,3.59094597,104.52,104.47,13.0983161]
[1770060130719,13.15849924,104.52,104.47,13.58471419]
[1770060130918,13.15849924,104.52,104.47,4.01269346]
[1770060132521,0.4955526,104.51,104.47,4.01269346]
[1770060133322,13.59040542,104.51,104.47,0.48639809]
[1770060133523,0.4955526,104.5,104.46,13.58525682]
[1770060134201,0.4955526,104.48,104.45,0.48639809]
[1770060135618,0.4955526,104.47,104.43,4.01308093]
[1770060136115,0.4955526,104.47,104.44,0.48639809]
[1770060136925,4.02223544,104.46,104.41,4.01308093]
[1770060137114,0.4955526,104.44,104.41,0.48639809]
[1770060137315,4.02223544,104.45,104.42,0.48639809]
[1770060138008,4.02223544,104.44,104.4,0.48639809]
[1770060138201,4.02223544,104.43,104.4,0.48639809]
[1770060138603,4.02223544,104.42,104.39,0.48639809]
[1770060138808,0.4955526,104.42,104.39,0.48639809]
[1770060139027,4.02223544,104.42,104.39,0.48639809]
[1770060139214,0.4955526,104.42,104.39,0.48639809]
[1770060140901,0.45205801,104.44,104.41,0.45333862]
[1770060141236,13.55322091,104.45,104.41,0.45333862]
[1770060141406,0.45205801,104.44,104.41,0.45333862]
[1770060142621,3.97874085,104.44,104.4,3.98002146]
[1770060142822,3.97874085,104.44,104.4,0.45333862]
[1770060143803,3.97874085,104.44,104.41,0.45333862]
[1770060144619,0.45205801,104.44,104.41,0.45333862]
[1770060144810,3.97874085,104.44,104.41,0.45333862]
[1770060145026,3.97874085,104.44,104.4,0.45333862]
[1770060145334,3.97874085,104.43,104.4,0.45333862]
[1770060145511,0.45205801,104.44,104.4,0.45333862]
[1770060145712,0.45205801,104.44,104.4,13.55836662]
[1770060145913,0.45205801,104.44,104.41,0.45333862]
[1770060146417,3.97874085,104.45,104.41,0.45333862]
[1770060147720,0.45205801,104.44,104.41,0.45333862]
[1770060147927,3.97874085,104.44,104.41,0.45333862]
[1770060148235,0.45205801,104.44,104.41,0.45333862]
[1770060150848,0.45205801,104.44,104.4,13.10517355]
[1770060152236,3.97874085,104.44,104.4,9.57849071]
[1770060152928,3.97874085,104.44,104.4,10.03182933]
[1770060153431,0.45205801,104.41,104.38,10.03328232]